fUSD/lending_fUSD_20241219
["ID","MTS","AMOUNT","RATE_DAILY","PERIOD"]
[345974024,1734577842438,-606.72018776,0.00023085,4]
[345974026,1734577842447,-500.0,0.00023085,4]
[345974027,1734577842458,-500.0,0.00023085,4]
[345974028,1734577842467,-500.0,0.00023085,4]
[345974029,1734577842477,-500.0,0.00023085,4]
[345974031,1734577842487,-500.0,0.00023085,4]
[345974032,1734577842496,-526.98280186,0.00023085,4]
[345974033,1734577842506,-500.0,0.00023085,4]
[345974034,1734577842516,-500.0,0.00023085,4]
[345974035,1734577842525,-499.41,0.00023088,2]
[345974036,1734577842535,-332.00521,0.00023088,7]
[345974037,1734577842545,-5843.52026281,0.00023118,2]
[345974038,1734577842555,-150.0,0.00023145,4]
[345974039,1734577842566,-150.0,0.0002316,2]
[345974040,1734577842576,-152.0,0.00023167,3]
[345974041,1734577842585,-499.96,0.00023188,2]
[345974042,1734577842595,-1680.84149565,0.00023197,2]
[345974043,1734577842604,-150.0,0.00023197,2]
[345974044,1734577842614,-150.0,0.00023216,2]
[345974045,1734577842623,-150.0,0.00023237,4]
[345974046,1734577842633,-150.0,0.00023248,2]
[345974047,1734577842642,-312.24044203,0.00023257,2]
[345974048,1734577842652,-500.0,0.00023257,4]
[345974049,1734577842662,-713.54,0.00023257,4]
[345974050,1734577842672,-500.0,0.00023257,4]
[345974051,1734577842681,-559.55,0.00023257,4]
[345974052,1734577842691,-594.42,0.00023257,4]
[345974053,1734577842700,-567.57,0.00023257,4]
[345974054,1734577842710,-500.0,0.00023257,4]
[345974055,1734577842719,-500.0,0.00023257,4]
[345974056,1734577842729,-153.80812465,0.00023257,4]
[345974057,1734577842739,-810.94,0.00023257,4]
[345974058,1734577842749,-500.0,0.00023257,4]
[345974059,1734577842759,-500.0,0.00023257,4]
[345974060,1734577842768,-500.0,0.00023257,4]
[345974061,1734577842778,-614.85,0.00023257,4]
[345974062,1734577842787,-500.0,0.00023257,4]
[345974063,1734577842796,-500.0,0.00023257,4]
[345974064,1734577842806,-538.53,0.00023257,4]
[345974065,1734577842818,-532.14,0.00023257,4]
[345974066,1734577842828,-500.0,0.00023257,4]
[345974067,1734577842838,-500.0,0.00023257,4]
[345974068,1734577842847,-1023.95,0.00023257,4]
[345974069,1734577842857,-748.04,0.00023257,4]
[345974070,1734577842866,-2006.57,0.00023257,4]
[345974071,1734577842875,-500.0,0.00023257,4]
[345974072,1734577842885,-1780.27,0.00023257,4]
[345974073,1734577842895,-500.0,0.00023257,4]
[345974074,1734577842905,-927.24,0.00023257,4]
[345974075,1734577842914,-500.0,0.00023257,4]
[345974076,1734577842924,-1231.54,0.00023257,4]
[345974077,1734577842933,-935.01,0.00023257,4]
[345974078,1734577842943,-500.0,0.00023257,4]
[345974079,1734577842952,-500.0,0.00023257,4]
[345974080,1734577842962,-500.0,0.00023257,4]
[345974081,1734577842971,-500.0,0.00023257,4]
[345974082,1734577842981,-500.0,0.00023257,4]
[345974083,1734577842990,-500.0,0.00023257,4]
[345974084,1734577842999,-596.37435591,0.00023257,4]
[345974085,1734577843009,-500.0,0.00023257,4]
[345974086,1734577843018,-500.0,0.00023257,4]
[345974087,1734577843028,-500.0,0.00023257,4]
[345974088,1734577843038,-500.0,0.00023257,4]
[345974089,1734577843047,-500.0,0.00023257,4]
[345974090,1734577843060,-500.0,0.00023257,4]
[345974091,1734577843073,-500.0,0.00023257,4]
[345974092,1734577843083,-573.83,0.00023257,4]
[345974093,1734577843093,-500.0,0.00023257,4]
[345974094,1734577843104,-500.0,0.00023257,4]
[345974095,1734577843114,-752.41,0.00023257,4]
[345974096,1734577843123,-150.0,0.00023277,4]
[345974097,1734577843134,-1000.0,0.00023287,5]
[345974098,1734577843144,-332.00521,0.00023288,7]
[345974099,1734577843154,-150.0,0.00023355,2]
[345974100,1734577843164,-569.39,0.00023357,4]
[345974101,1734577843174,-500.0,0.00023357,4]
[345974102,1734577843183,-500.0,0.00023357,4]
[345974103,1734577843193,-500.0,0.00023357,4]
[345974104,1734577843203,-500.0,0.00023357,4]
[345974105,1734577843213,-500.0,0.00023357,4]
[345974106,1734577843223,-500.0,0.00023357,4]
[345974107,1734577843234,-500.0,0.00023357,4]
[345974108,1734577843244,-500.0,0.00023357,4]
[345974109,1734577843254,-500.0,0.00023357,4]
[345974110,1734577843263,-500.0,0.00023357,4]
[345974111,1734577843273,-500.0,0.00023357,4]
[345974112,1734577843282,-500.0,0.00023357,4]
[345974113,1734577843292,-500.0,0.00023357,4]
[345974114,1734577843302,-500.0,0.00023357,4]
[345974115,1734577843315,-500.0,0.00023357,4]
[345974116,1734577843325,-500.0,0.00023357,4]
[345974117,1734577843336,-500.0,0.00023357,4]
[345974118,1734577843345,-500.0,0.00023357,4]
[345974119,1734577843355,-500.0,0.00023357,4]
[345974120,1734577843365,-150.0,0.00023357,2]
[345974121,1734577843375,-500.0,0.00023357,4]
[345974122,1734577843385,-500.0,0.00023357,4]
[345974123,1734577843395,-500.0,0.00023357,4]
[345974124,1734577843405,-500.0,0.00023357,4]
[345974125,1734577843415,-500.0,0.00023357,4]
[345974126,1734577843425,-2218.05,0.00023357,4]
[345974127,1734577843434,-500.0,0.00023357,4]
[345974128,1734577843444,-500.0,0.00023357,4]
[345974129,1734577843454,-500.0,0.00023357,4]
[345974130,1734577843464,-500.0,0.00023357,4]
[345974131,1734577843473,-774.82,0.00023357,4]
[345974132,1734577843483,-500.0,0.00023357,4]
[345974133,1734577843493,-1144.85,0.00023357,4]
[345974134,1734577843503,-956.3,0.00023357,4]
[345974135,1734577843513,-500.0,0.00023357,4]
[345974136,1734577843522,-728.82,0.00023357,4]
[345974137,1734577843532,-500.0,0.00023357,4]
[345974138,1734577843543,-543.89,0.00023357,2]
[345974139,1734577843552,-500.0,0.00023357,4]
[345974140,1734577843564,-500.0,0.00023357,4]
[345974141,1734577843578,-500.0,0.00023357,4]
[345974142,1734577843587,-500.0,0.00023357,4]
[345974143,1734577843598,-500.0,0.00023357,4]
[345974144,1734577843607,-500.0,0.00023357,4]
[345974145,1734577843618,-500.0,0.00023357,4]
[345974146,1734577843628,-609.43,0.00023357,4]
[345974147,1734577843638,-655.71,0.00023357,4]
[345974148,1734577843648,-687.06,0.00023357,4]
[345974149,1734577843658,-500.0,0.00023357,4]
[345974150,1734577843667,-949.13,0.00023357,4]
[345974151,1734577843678,-500.0,0.00023357,4]
[345974152,1734577843687,-799.75,0.00023357,4]
[345974153,1734577843697,-652.23,0.00023357,4]
[345974154,1734577843707,-500.0,0.00023357,4]
[345974155,1734577843716,-868.68,0.00023357,4]
[345974156,1734577843726,-600.34,0.00023357,4]
[345974157,1734577843736,-500.0,0.00023357,4]
[345974158,1734577843746,-500.0,0.00023357,4]
[345974159,1734577843756,-1000.7,0.00023357,4]
[345974160,1734577843766,-991.34164116,0.00023357,4]
[345974163,1734577844013,-653.17835884,0.00023357,4]
[345974165,1734577844023,-129.31717346,0.00023357,4]
[345974168,1734577844036,-394.27282654,0.00023357,4]
[345974173,1734577844086,-500.0,0.00023358,4]
[345974175,1734577844096,-150.689757,0.00023358,4]
[345974177,1734577844107,-500.0,0.00023358,4]
[345974179,1734577844117,-353.49941299,0.00023358,4]
[345974180,1734577844129,-146.50058701,0.00023358,4]
[345974181,1734577844140,-500.0,0.00023358,4]
[345974182,1734577844149,-500.0,0.00023358,4]
[345974183,1734577844158,-500.0,0.00023358,4]
[345974184,1734577844167,-500.0,0.00023358,4]
[345974185,1734577844177,-500.0,0.00023358,4]
[345974186,1734577844187,-312.09512934,0.00023358,4]
[345974187,1734577844196,-500.0,0.00023358,4]
[345974188,1734577844205,-500.0,0.00023358,4]
[345974189,1734577844214,-500.0,0.00023358,4]
[345974190,1734577844225,-75.26775353,0.00023358,4]
[345974191,1734577844301,-500.0,0.00022809,4]
[345974192,1734577844311,-424.73224647,0.00023358,4]
[345974193,1734577844324,-500.0,0.00023358,4]
[345974194,1734577844334,-500.0,0.00023358,4]
[345974195,1734577844343,-500.0,0.00023358,4]
[345974196,1734577844352,-500.0,0.00023358,4]
[345974197,1734577844362,-500.0,0.00023358,4]
[345974198,1734577844371,-500.0,0.00023358,4]
[345974199,1734577844381,-500.0,0.00023358,4]
[345974200,1734577844390,-500.0,0.00023358,4]
[345974201,1734577844400,-481.73513649,0.00023358,4]
[345974202,1734577844431,-438.85133393,0.00023083,4]
[345974203,1734577844443,-61.14866607,0.00023083,4]
[345974204,1734577844453,-21.11486351,0.00023358,4]
[345974205,1734577844463,-2086.21,0.00023358,4]
[345974206,1734577844472,-421.45542792,0.00023358,4]
[345974207,1734577844484,-78.54457208,0.00023358,4]
[345974208,1734577844494,-388.05542772,0.00023358,4]
[345974209,1734577844506,-111.94457228,0.00023358,4]
[345974210,1734577844515,-500.0,0.00023358,4]
[345974211,1734577844524,-809.95,0.00023358,4]
[345974212,1734577844534,-3005.26799069,0.00023358,4]
[345974213,1734577844545,-145.71200931,0.00023358,4]
[345974214,1734577844555,-331.34019066,0.00023358,4]
[345974215,1734577844568,-168.65980934,0.00023358,4]
[345974216,1734577844578,-530.11,0.00023358,4]
[345974217,1734577844587,-500.0,0.00023358,4]
[345974218,1734577844597,-500.0,0.00023358,4]
[345974219,1734577844606,-838.8,0.00023358,4]
[345974220,1734577844615,-500.0,0.00023358,4]
[345974221,1734577844625,-500.0,0.00023358,4]
[345974222,1734577844635,-917.98935576,0.00023358,4]
[345974223,1734577844646,-82.01064424,0.00023358,4]
[345974224,1734577844655,-239.71985576,0.00023358,4]
[345974225,1734577844667,-260.28014424,0.00023358,4]
[345974226,1734577844676,-469.27485576,0.00023358,4]
[345974227,1734577844688,-133.83514424,0.00023358,4]
[345974228,1734577844697,-1225.58,0.00023358,4]
[345974229,1734577844706,-500.0,0.00023358,4]
[345974230,1734577844715,-500.0,0.00023359,4]
[345974231,1734577844724,-500.0,0.00023359,7]
[345974232,1734577844734,-157.68485576,0.00023359,4]
[345974233,1734577844745,-342.31514424,0.00023359,4]
[345974234,1734577844755,-9.60819494,0.00023359,4]
[345974235,1734577844766,-437.5677695,0.00023359,4]
[345974236,1734577844788,-52.82403556,0.00023359,4]
[345974237,1734577844798,-500.0,0.00023359,4]
[345974238,1734577844808,-508.39441008,0.00023359,4]
[345974239,1734577844819,-500.0,0.00023359,4]
[345974240,1734577844828,-500.0,0.00023359,4]
[345974241,1734577844838,-500.0,0.00023359,4]
[345974242,1734577844847,-5843.52026281,0.00023373,2]
[345974244,1734577844856,-150.0,0.00023408,4]
[345974246,1734577844866,-1680.84149565,0.0002344,2]
[345974248,1734577844876,-150.0,0.00023464,2]
[345974250,1734577844886,-150.0,0.00023487,4]
[345974252,1734577844895,-150.0,0.00023487,4]
[345974254,1734577844904,-150.0,0.00023502,2]
[345974256,1734577844914,-181.63479931,0.00023507,2]
[345974257,1734577844923,-150.0,0.00023523,2]
[345974258,1734577844932,-312.24044203,0.00023531,2]
[345974259,1734577844941,-500.0,0.00023531,4]
[345974260,1734577844951,-713.54,0.00023531,4]
[345974261,1734577844960,-500.0,0.00023531,4]
[345974262,1734577844970,-559.55,0.00023531,4]
[345974263,1734577844980,-594.42,0.00023531,4]
[345974264,1734577844991,-567.57,0.00023531,4]
[345974265,1734577845000,-500.0,0.00023531,4]
[345974266,1734577845010,-500.0,0.00023531,4]
[345974267,1734577845020,-810.94,0.00023531,4]
[345974268,1734577845029,-500.0,0.00023531,4]
[345974269,1734577845038,-500.0,0.00023531,4]
[345974270,1734577845048,-500.0,0.00023531,4]
[345974271,1734577845059,-614.85,0.00023531,4]
[345974272,1734577845075,-500.0,0.00023531,4]
[345974273,1734577845084,-500.0,0.00023531,4]
[345974274,1734577845095,-538.53,0.00023531,4]
[345974275,1734577845107,-532.14,0.00023531,4]
[345974276,1734577845117,-500.0,0.00023531,4]
[345974277,1734577845126,-500.0,0.00023531,4]
[345974278,1734577845135,-1023.95,0.00023531,4]
[345974279,1734577845148,-748.04,0.00023531,4]
[345974280,1734577845158,-2006.57,0.00023531,4]
[345974281,1734577845168,-257.894516,0.00023531,4]
[345974282,1734577845178,-1780.27,0.00023531,4]
[345974283,1734577845187,-500.0,0.00023531,4]
[345974284,1734577845198,-927.24,0.00023531,4]
[345974285,1734577845210,-500.0,0.00023531,4]
[345974286,1734577845221,-1231.54,0.00023531,4]
[345974287,1734577845230,-935.01,0.00023531,4]
[345974288,1734577845240,-500.0,0.00023531,4]
[345974289,1734577845251,-500.0,0.00023531,4]
[345974290,1734577845262,-500.0,0.00023531,4]
[345974291,1734577845274,-500.0,0.00023531,4]
[345974292,1734577845283,-500.0,0.00023531,4]
[345974293,1734577845292,-500.0,0.00023531,4]
[345974294,1734577845302,-500.0,0.00023531,4]
[345974295,1734577845311,-500.0,0.00023531,4]
[345974296,1734577845323,-632.35569282,0.00023531,4]
[345974297,1734577845332,-500.0,0.00023531,4]
[345974298,1734577845342,-500.0,0.00023531,4]
[345974299,1734577845351,-500.0,0.00023531,4]
[345974300,1734577845361,-500.0,0.00023531,4]
[345974301,1734577845371,-573.83,0.00023531,4]
[345974302,1734577845380,-500.0,0.00023531,4]
[345974303,1734577845390,-500.0,0.00023531,4]
[345974304,1734577845400,-752.41,0.00023531,4]
[345974305,1734577845409,-150.0,0.0002354,4]
[345974306,1734577845418,-1169.0,0.0002354,2]
[345974307,1734577845428,-3884.0,0.0002354,2]
[345974308,1734577845437,-150.0,0.0002354,2]
[345974309,1734577845446,-13747.0,0.0002354,2]
[345974310,1734577845455,-1099.0,0.0002354,2]
[345974311,1734577845464,-150.0,0.00023581,2]
[345974312,1734577845473,-150.0,0.00023596,2]
[345974313,1734577845483,-200.0,0.0002361,2]
[345974315,1734577845493,-5843.52026281,0.00023627,2]
[345974317,1734577845503,-569.39,0.00023631,4]
[345974318,1734577845512,-500.0,0.00023631,4]
[345974321,1734577845522,-500.0,0.00023631,4]
[345974324,1734577845531,-500.0,0.00023631,4]
[345974327,1734577845540,-500.0,0.00023631,4]
[345974329,1734577845550,-500.0,0.00023631,4]
[345974331,1734577845559,-500.0,0.00023631,4]
[345974332,1734577845570,-647.11102056,0.00023631,4]
[345974334,1734577845579,-500.0,0.00023631,4]
[345974336,1734577845588,-500.0,0.00023631,4]
[345974338,1734577845597,-500.0,0.00023631,4]
[345974339,1734577845607,-500.0,0.00023631,4]
[345974340,1734577845616,-500.0,0.00023631,4]
[345974341,1734577845625,-500.0,0.00023631,4]
[345974342,1734577845635,-500.0,0.00023631,4]
[345974343,1734577845644,-500.0,0.00023631,4]
[345974344,1734577845654,-500.0,0.00023631,4]
[345974345,1734577845663,-500.0,0.00023631,4]
[345974346,1734577845672,-500.0,0.00023631,4]
[345974347,1734577845682,-500.0,0.00023631,4]
[345974348,1734577845691,-500.0,0.00023631,4]
[345974349,1734577845701,-500.0,0.00023631,4]
[345974350,1734577845710,-500.0,0.00023631,4]
[345974351,1734577845719,-500.0,0.00023631,4]
[345974352,1734577845729,-500.0,0.00023631,4]
[345974353,1734577845738,-2218.05,0.00023631,4]
[345974354,1734577845747,-500.0,0.00023631,4]
[345974355,1734577845757,-500.0,0.00023631,4]
[345974356,1734577845766,-500.0,0.00023631,4]
[345974357,1734577845775,-500.0,0.00023631,4]
[345974358,1734577845784,-774.82,0.00023631,4]
[345974359,1734577845793,-500.0,0.00023631,4]
[345974360,1734577845803,-1144.85,0.00023631,4]
[345974361,1734577845812,-956.3,0.00023631,4]
[345974362,1734577845824,-500.0,0.00023631,4]
[345974363,1734577845833,-728.82,0.00023631,4]
[345974364,1734577845843,-543.89,0.00023631,2]
[345974365,1734577845852,-498.64057871,0.00023631,4]
[345974366,1734577845861,-500.0,0.00023631,4]
[345974367,1734577845871,-500.0,0.00023631,4]
[345974368,1734577845880,-500.0,0.00023631,4]
[345974369,1734577845889,-500.0,0.00023631,4]
[345974370,1734577845898,-500.0,0.00023631,4]
[345974371,1734577845907,-500.0,0.00023631,4]
[345974372,1734577845917,-609.43,0.00023631,4]
[345974373,1734577845927,-655.71,0.00023631,4]
[345974374,1734577845937,-687.06,0.00023631,4]
[345974375,1734577845946,-500.0,0.00023631,4]
[345974376,1734577845955,-949.13,0.00023631,4]
[345974377,1734577845965,-500.0,0.00023631,4]
[345974378,1734577845975,-799.75,0.00023631,4]
[345974379,1734577845984,-652.23,0.00023631,4]
[345974380,1734577845993,-868.68,0.00023631,4]
[345974381,1734577846003,-600.34,0.00023631,4]
[345974382,1734577846013,-40.70063316,0.00023631,4]
[345974383,1734577846027,-442.61210009,0.00023631,4]
[345974384,1734577846038,-16.68726675,0.00023631,4]
[345974385,1734577846049,-500.0,0.00023631,4]
[345974386,1734577846059,-1000.7,0.00023631,4]
[345974387,1734577846072,-1644.52,0.00023631,4]
[345974388,1734577846082,-523.59,0.00023631,4]
[345974389,1734577846092,-500.0,0.00023632,4]
[345974390,1734577846103,-500.0,0.00023632,4]
[345974391,1734577846112,-500.0,0.00023632,4]
[345974392,1734577846121,-500.0,0.00023632,4]
[345974393,1734577846131,-500.0,0.00023632,4]
[345974394,1734577846141,-500.0,0.00023632,4]
[345974395,1734577846151,-500.0,0.00023632,4]
[345974396,1734577846161,-500.0,0.00023632,4]
[345974397,1734577846170,-338.03051053,0.00023632,4]
[345974398,1734577846179,-500.0,0.00023632,4]
[345974399,1734577846189,-451.61035554,0.00023632,4]
[345974400,1734577846199,-500.0,0.00023632,4]
[345974401,1734577846209,-500.0,0.00023632,4]
[345974402,1734577846219,-500.0,0.00023632,4]
[345974403,1734577846229,-500.0,0.00023632,4]
[345974404,1734577846238,-150.0,0.00023632,2]
[345974405,1734577846248,-500.0,0.00023632,4]
[345974406,1734577846258,-500.0,0.00023632,4]
[345974407,1734577846268,-500.0,0.00023632,4]
[345974408,1734577846277,-500.0,0.00023632,4]
[345974409,1734577846287,-502.85,0.00023632,4]
[345974410,1734577846296,-2086.21,0.00023632,4]
[345974411,1734577846306,-500.0,0.00023632,4]
[345974412,1734577846316,-500.0,0.00023632,4]
[345974413,1734577846325,-500.0,0.00023632,4]
[345974414,1734577846335,-809.95,0.00023632,4]
[345974415,1734577846345,-500.0,0.00023632,4]
[345974416,1734577846355,-3150.98,0.00023632,4]
[345974417,1734577846364,-530.11,0.00023632,4]
[345974418,1734577846374,-500.0,0.00023632,4]
[345974419,1734577846383,-500.0,0.00023632,4]
[345974420,1734577846393,-838.8,0.00023632,4]
[345974421,1734577846402,-500.0,0.00023632,4]
[345974422,1734577846412,-500.0,0.00023632,4]
[345974423,1734577846421,-1000.0,0.00023632,4]
[345974424,1734577846431,-500.0,0.00023632,4]
[345974425,1734577846441,-264.71489491,0.00023632,4]
[345974426,1734577846452,-338.39510509,0.00023632,4]
[345974427,1734577846462,-469.97828619,0.00023632,4]
[345974428,1734577846474,-755.60171381,0.00023632,4]
[345974429,1734577846484,-500.0,0.00023632,4]
[345974430,1734577846494,-500.0,0.00023633,4]
[345974431,1734577846503,-500.0,0.00023633,7]
[345974432,1734577846513,-500.0,0.00023633,4]
[345974433,1734577846523,-500.0,0.00023633,4]
[345974434,1734577846532,-432.3666717,0.00023633,4]
[345974435,1734577846542,-500.0,0.00023633,4]
[345974436,1734577846551,-266.21559478,0.00023633,4]
[345974437,1734577846563,-233.78440522,0.00023633,4]
[345974438,1734577846576,-500.0,0.00023633,4]
[345974439,1734577846585,-150.0,0.00023643,2]
[345974440,1734577846595,-150.0,0.00023668,2]
[345974441,1734577846604,-150.0,0.00023671,4]
[345974442,1734577846614,-3546.9611,0.00023673,2]
[345974443,1734577846623,-1680.84149565,0.00023683,2]
[345974444,1734577846633,-500.0,0.00023689,7]
[345974445,1734577846643,-150.0,0.00023736,2]
[345974446,1734577846653,-150.0,0.00023737,4]
[345974447,1734577846663,-454.78,0.0002375,2]
[345974448,1734577846673,-150.0,0.00023789,2]
[345974449,1734577846682,-150.0,0.00023803,4]
[345974450,1734577846691,-312.24044203,0.00023805,2]
[345974451,1734577846701,-500.0,0.00023805,4]
[345974452,1734577846711,-713.54,0.00023805,4]
[345974453,1734577846721,-500.0,0.00023805,4]
[345974454,1734577846730,-559.55,0.00023805,4]
[345974455,1734577846740,-594.42,0.00023805,4]
[345974456,1734577846749,-232.78779217,0.00023805,4]
[345974457,1734577846958,-500.0,0.00022809,4]
[345974458,1734577846968,-500.0,0.00022809,4]
[345974459,1734577846978,-430.41633403,0.00023083,4]
[345974460,1734577846988,-501.05350463,0.00023673,2]
[345974461,1734577846997,-334.78220783,0.00023805,4]
[345974462,1734577847007,-500.0,0.00023805,4]
[345974463,1734577847016,-500.0,0.00023805,4]
[345974464,1734577847026,-810.94,0.00023805,4]
[345974465,1734577847036,-500.0,0.00023805,4]
[345974466,1734577847046,-500.0,0.00023805,4]
[345974467,1734577847056,-500.0,0.00023805,4]
[345974468,1734577847069,-614.85,0.00023805,4]
[345974469,1734577847079,-500.0,0.00023805,4]
[345974470,1734577847088,-500.0,0.00023805,4]
[345974471,1734577847098,-538.53,0.00023805,4]
[345974472,1734577847109,-532.14,0.00023805,4]
[345974473,1734577847119,-500.0,0.00023805,4]
[345974474,1734577847128,-500.0,0.00023805,4]
[345974475,1734577847139,-1023.95,0.00023805,4]
[345974476,1734577847150,-63.55973851,0.00023805,4]
[345974477,1734577847162,-335.64141318,0.00023805,4]
[345974478,1734577847174,-348.83884831,0.00023805,4]
[345974479,1734577847183,-234.4611535,0.00023805,4]
[345974480,1734577847195,-814.50245992,0.00023805,4]
[345974481,1734577847206,-957.60638658,0.00023805,4]
[345974482,1734577847216,-1780.27,0.00023805,4]
[345974483,1734577847226,-500.0,0.00023805,4]
[345974484,1734577847236,-927.24,0.00023805,4]
[345974485,1734577847246,-500.0,0.00023805,4]
[345974486,1734577847256,-255.36499443,0.00023805,4]
[345974487,1734577847268,-437.75676573,0.00023805,4]
[345974488,1734577847280,-260.57208937,0.00023805,4]
[345974489,1734577847291,-277.84615047,0.00023805,4]
[345974490,1734577847301,-935.01,0.00023805,4]
[345974491,1734577847312,-500.0,0.00023805,4]
[345974492,1734577847325,-80.39318954,0.00023805,4]
[345974493,1734577847342,-1332.61877719,0.00022709,2]
[345974494,1734577847354,-2599.444995,0.00022709,2]
[345974495,1734577847366,-1068.64597801,0.00022709,2]
[345974496,1734577847376,-419.60681046,0.00023805,4]
[345974497,1734577847386,-500.0,0.00023805,4]
[345974498,1734577847396,-19.4015046,0.00023805,4]
[345974499,1734577847408,-480.5984954,0.00023805,4]
[345974500,1734577847418,-500.0,0.00023805,4]
[345974501,1734577847428,-500.0,0.00023805,4]
[345974502,1734577847438,-500.0,0.00023805,4]
[345974503,1734577847447,-500.0,0.00023805,4]
[345974504,1734577847457,-500.0,0.00023805,4]
[345974505,1734577847467,-500.0,0.00023805,4]
[345974506,1734577847478,-500.0,0.00023805,4]
[345974507,1734577847488,-500.0,0.00023805,4]
[345974508,1734577847498,-573.83,0.00023805,4]
[345974509,1734577847507,-500.0,0.00023805,4]
[345974510,1734577847517,-752.41,0.00023805,4]
[345974511,1734577847528,-500.0,0.00023805,4]
[345974512,1734577847538,-495.82,0.00023811,2]
[345974513,1734577847547,-181.63479931,0.00023836,2]
[345974514,1734577847558,-3371.70670629,0.00023882,2]
[345974515,1734577847572,-2471.81355652,0.00023882,2]
[345974516,1734577847582,-1050.65938604,0.00023894,2]
[345974517,1734577847593,-500.0,0.00023905,4]
[345974518,1734577847603,-500.0,0.00023905,4]
[345974519,1734577847613,-500.0,0.00023905,4]
[345974520,1734577847623,-500.0,0.00023905,4]
[345974521,1734577847633,-500.0,0.00023905,4]
[345974522,1734577847643,-500.0,0.00023905,4]
[345974523,1734577847652,-500.0,0.00023905,4]
[345974524,1734577847661,-500.0,0.00023905,4]
[345974525,1734577847671,-242.24680391,0.00023905,4]
[345974526,1734577847683,-500.0,0.00023905,4]
[345974527,1734577847692,-500.0,0.00023905,4]
[345974528,1734577847702,-500.0,0.00023905,4]
[345974529,1734577847712,-500.0,0.00023905,4]
[345974530,1734577847722,-500.0,0.00023905,4]
[345974531,1734577847733,-500.0,0.00023905,4]
[345974532,1734577847743,-500.0,0.00023905,4]
[345974533,1734577847753,-500.0,0.00023905,4]
[345974534,1734577847762,-500.0,0.00023905,4]
[345974535,1734577847772,-105.08289353,0.00023905,4]
[345974536,1734577847784,-394.91710647,0.00023905,4]
[345974537,1734577847795,-500.0,0.00023905,4]
[345974538,1734577847805,-500.0,0.00023905,4]
[345974539,1734577847816,-500.0,0.00023905,4]
[345974540,1734577847827,-500.0,0.00023905,4]
[345974541,1734577847836,-2218.05,0.00023905,4]
[345974542,1734577847846,-53.83289353,0.00023905,4]
[345974543,1734577847892,-500.0,0.00022809,4]
[345974544,1734577847901,-500.0,0.00023083,4]
[345974545,1734577847911,-500.0,0.00023357,4]
[345974546,1734577847922,-446.16710647,0.00023905,4]
[345974547,1734577847932,-500.0,0.00023905,4]
[345974548,1734577847943,-500.0,0.00023905,4]
[345974549,1734577847954,-500.0,0.00023905,4]
[345974550,1734577847964,-774.82,0.00023905,4]
[345974551,1734577847975,-500.0,0.00023905,4]
[345974552,1734577847984,-1144.85,0.00023905,4]
[345974553,1734577847994,-956.3,0.00023905,4]
[345974554,1734577848004,-500.0,0.00023905,4]
[345974555,1734577848014,-728.82,0.00023905,4]
[345974556,1734577848025,-543.89,0.00023905,2]
[345974557,1734577848036,-500.0,0.00023905,4]